bitfinex/quotes_SOLUSD_20260224
["timestamp","ask_amount","ask_price","bid_price","bid_amount"]
[1771902644799,0.46354047,77.415,77.379,0.4829301]
[1771902645103,0.46354047,77.413,77.38,12.92323597]
[1771902645295,0.46354047,77.409,77.38,12.92323597]
[1771902645726,0.46354047,77.409,77.372,0.4829301]
[1771902645914,0.46354047,77.399,77.372,0.4829301]
[1771902646236,0.46354047,77.389,77.355,0.4829301]
[1771902646393,0.46354047,77.379,77.349,12.92833081]
[1771902646823,0.46354047,77.399,77.35,0.4829301]
[1771902647006,0.46354047,77.399,77.355,0.4829301]
[1771902647203,0.46354047,77.409,77.369,0.4829301]
[1771902647518,11.4594776,77.41,77.375,0.4829301]
[1771902647722,0.46354047,77.409,77.375,0.4829301]
[1771902648223,11.4594776,77.4,77.375,0.4829301]
[1771902648524,0.47679728,77.399,77.365,0.48240885]
[1771902650105,0.47679728,77.399,77.367,0.48240885]
[1771902651018,13.39702777,77.398,77.367,0.48240885]
[1771902651249,0.47679728,77.397,77.367,0.48240885]
[1771902651723,0.47679728,77.389,77.352,0.28432314]
[1771902651919,0.47679728,77.389,77.355,0.76673199]
[1771902652220,0.47679728,77.379,77.356,12.92724546]
[1771902653122,0.47679728,77.379,77.355,0.48240885]
[1771902653326,0.47679728,77.379,77.346,0.48240885]
[1771902654018,0.47679728,77.379,77.342,13.07174704]
[1771902654019,0.47679728,77.379,77.343,0.14216157]
[1771902654217,0.47679728,77.379,77.342,0.48240885]
[1771902654218,0.47679728,77.369,77.338,12.93016147]
[1771902655122,0.47679728,77.359,77.332,12.93111899]
[1771902655304,0.47679728,77.359,77.326,0.48240885]
[1771902655506,0.47679728,77.349,77.319,0.48240885]
[1771902656101,0.47679728,77.358,77.324,0.28432314]
[1771902656304,0.47679728,77.369,77.335,0.48240885]
[1771902656826,0.47679728,77.349,77.32,12.93326435]
[1771902657203,0.47679728,77.339,77.315,0.28432314]
[1771902657509,0.47679728,77.339,77.314,0.48240885]
[1771902659710,0.47679728,77.337,77.314,0.48240885]
[1771902659933,12.9302542,77.338,77.283,3.69383402]
[1771902659934,0.47679728,77.329,77.3,0.28432314]
[1771902660104,0.47679728,77.329,77.301,0.76673199]
[1771902660312,0.47679728,77.346,77.306,0.48240885]
[1771902660623,0.47679728,77.359,77.316,0.48240885]
[1771902660819,0.47679728,77.349,77.309,12.93510458]
[1771902661031,0.47679728,77.339,77.31,0.48240885]
[1771902661327,0.47679728,77.339,77.309,12.93510458]
[1771902662610,0.47679728,77.339,77.305,0.48240885]
[1771902663114,0.47679728,77.338,77.305,0.48240885]
[1771902664946,0.47679728,77.336,77.307,0.48240885]
[1771902666433,0.47679728,77.328,77.307,0.48240885]
[1771902666931,0.2,77.329,77.307,0.48240885]
[1771902667133,0.2,77.329,77.308,12.93527189]
[1771902667332,12.93192633,77.328,77.307,0.48240885]
[1771902667639,0.2,77.319,77.303,12.93600919]
[1771902667819,0.2,77.319,77.3,0.48240885]
[1771902668018,0.2,77.319,77.301,0.48240885]
[1771902669026,0.2,77.319,77.303,0.48240885]
[1771902671248,0.2,77.319,77.304,12.93594121]
[1771902671534,0.2,77.319,77.305,0.48240885]
[1771902672033,0.2,77.329,77.305,0.48240885]
[1771902672533,0.47679728,77.358,77.308,0.28432314]
[1771902672736,0.47679728,77.358,77.323,0.48240885]
[1771902672928,12.92707835,77.357,77.325,0.48240885]
[1771902673121,0.47679728,77.356,77.325,0.48240885]
[1771902673318,32.31853144,77.355,77.294,5.36086188]
[1771902673527,0.47679728,77.329,77.301,0.48240885]
[1771902674552,0.47679728,77.329,77.266,0.48240885]
[1771902674721,0.47679728,77.329,77.294,0.48240885]
[1771902675617,12.93192633,77.328,77.284,0.48240885]
[1771902675942,0.47679728,77.309,77.277,0.48240885]
[1771902678229,0.47055164,77.307,77.273,0.28432314]
[1771902678429,0.47055164,77.307,77.273,0.76658601]
[1771902678939,0.47055164,77.307,77.275,0.28432314]
[1771902679246,0.47055164,77.307,77.276,0.48226287]
[1771902680745,0.47055164,77.307,77.278,0.48226287]
[1771902680944,0.47055164,77.319,77.286,0.48226287]
[1771902681728,3.69383402,77.351,77.277,45.29161327]
[1771902681729,0.49963762,77.329,77.296,0.4774387]
[1771902681923,0.49963762,77.337,77.305,0.14216157]
[1771902682144,0.49963762,77.337,77.306,0.4774387]
[1771902682341,11.4594776,77.34,77.306,0.4774387]
[1771902682653,0.49963762,77.346,77.316,0.4774387]
[1771902682828,0.49963762,77.346,77.318,0.4774387]
[1771902683028,0.49963762,77.344,77.318,0.4774387]
[1771902683231,0.49963762,77.352,77.318,0.4774387]
[1771902683542,11.4594776,77.35,77.318,0.4774387]
[1771902683851,11.4594776,77.35,77.307,32.33818901]
[1771902683852,0.49963762,77.339,77.312,0.76176184]
[1771902684142,0.49963762,77.339,77.308,12.93527189]
[1771902684726,0.49963762,77.339,77.309,0.4774387]
[1771902685127,0.49963762,77.337,77.31,12.93493726]
[1771902685549,0.49963762,77.337,77.31,13.41237596]
[1771902686449,0.49963762,77.319,77.286,0.4774387]
[1771902689247,0.49963762,77.326,77.296,0.4774387]
[1771902689445,0.49963762,77.319,77.287,12.9387866]
[1771902690230,0.49963762,77.319,77.288,0.4774387]
[1771902690437,0.49963762,77.319,77.287,12.9387866]
[1771902690745,0.49963762,77.319,77.288,0.4774387]
[1771902694546,0.49963762,77.328,77.296,0.4774387]
[1771902694733,0.49963762,77.339,77.306,0.4774387]
[1771902696150,0.49963762,77.329,77.29,0.4774387]
[1771902696351,0.49963762,77.329,77.295,0.4774387]
[1771902696844,0.49963762,77.328,77.297,0.4774387]
[1771902698256,0.49963762,77.328,77.298,13.41438402]
[1771902698559,0.49963762,77.328,77.299,0.4774387]
[1771902699652,43.78427718,77.34,77.299,0.4774387]
[1771902699653,0.49963762,77.326,77.299,0.4774387]
[1771902700167,0.49963762,77.326,77.265,103.5]
[1771902700168,0.49963762,77.326,77.273,3.69383402]
[1771902700362,0.49963762,77.317,77.283,0.4774387]
[1771902700542,0.49963762,77.317,77.284,0.76176184]
[1771902701270,0.49963762,77.315,77.284,13.70105069]
[1771902704263,0.49963762,77.289,77.259,0.4774387]
[1771902704470,0.49963762,77.289,77.252,0.4774387]
[1771902704769,0.49963762,77.289,77.256,0.4774387]
[1771902705568,0.49963762,77.287,77.256,13.42135435]
[1771902705742,0.49963762,77.287,77.223,5.36086188]
[1771902705743,0.49963762,77.269,77.238,0.4774387]
[1771902706859,0.49963762,77.259,77.227,0.4774387]
[1771902707052,0.49963762,77.259,77.227,13.42616351]
[1771902707447,0.49963762,77.249,77.22,13.52730145]
[1771902707648,0.49963762,77.247,77.22,13.52730145]
[1771902709664,12.94565414,77.246,77.22,0.5774387]
[1771902709862,0.47644376,77.239,77.22,0.1]
[1771902710448,0.47644376,77.229,77.19,0.45180783]
[1771902710672,11.97177663,77.22,77.19,13.40671681]
[1771902710971,0.47644376,77.219,77.19,13.40671681]
[1771902711153,0.47644376,77.219,77.193,12.95442174]
[1771902711468,0.47644376,77.219,77.196,0.45180783]
[1771902711849,0.47644376,77.217,77.189,0.45180783]
[1771902712053,0.47644376,77.209,77.168,0.45180783]
[1771902712366,11.97177663,77.2,77.168,0.45180783]
[1771902712565,0.47644376,77.2,77.175,0.28432314]
[1771902712760,0.47644376,77.2,77.144,5.36086188]
[1771902712761,0.47644376,77.199,77.166,0.45180783]
[1771902713071,0.47644376,77.189,77.158,0.45180783]
[1771902713250,11.49533287,77.18,77.158,0.45180783]
[1771902713448,0.47644376,77.179,77.151,0.45180783]
[1771902713958,0.47644376,77.177,77.146,0.45180783]
[1771902714163,0.47644376,77.177,77.139,12.96348005]
[1771902714164,0.47644376,77.169,77.14,0.45180783]
[1771902714343,0.47644376,77.169,77.133,0.45180783]
[1771902714551,0.47644376,77.169,77.135,0.45180783]
[1771902716366,11.49533287,77.16,77.135,0.45180783]
[1771902716552,0.47644376,77.159,77.128,0.45180783]
[1771902717151,0.47644376,77.167,77.128,0.45180783]
[1771902717547,0.47644376,77.167,77.131,0.14216157]
[1771902717749,0.47644376,77.167,77.134,0.45180783]
[1771902718346,0.47644376,77.167,77.136,0.45180783]
[1771902719370,3.69383402,77.191,77.135,12.96428339]
[1771902719371,11.49533287,77.18,77.144,0.45180783]
[1771902719756,0.47644376,77.179,77.144,0.45180783]
[1771902720156,0.47644376,77.189,77.154,0.45180783]
[1771902720370,0.47644376,77.177,77.138,0.45180783]
[1771902720561,0.47644376,77.177,77.144,0.45180783]
[1771902720762,0.47644376,77.184,77.144,0.45180783]
[1771902720961,0.47644376,77.184,77.124,162.07665576]
[1771902720962,12.95521382,77.189,77.154,0.45180783]
[1771902721368,0.47644376,77.192,77.153,0.28432314]
[1771902721369,0.47644376,77.192,77.156,0.45180783]
[1771902721580,0.47644376,77.209,77.166,0.45180783]
[1771902721778,0.47644376,77.218,77.17,0.45180783]
[1771902722075,0.47644376,77.219,77.186,0.45180783]
[1771902722681,13.4267146,77.219,77.188,0.45180783]
[1771902722982,0.47644376,77.229,77.196,0.45180783]
[1771902723878,0.47644376,77.209,77.173,0.14216157]
[1771902724261,0.47644376,77.209,77.175,0.45180783]
[1771902724888,12.95158745,77.211,77.177,0.45180783]
[1771902725071,12.9508779,77.215,77.177,0.45180783]
[1771902725267,0.47644376,77.227,77.19,0.28432314]
[1771902725455,0.47644376,77.227,77.176,45.35088628]
[1771902725456,0.47644376,77.227,77.195,0.45180783]
[1771902726257,13.42545057,77.226,77.195,0.45180783]
[1771902726486,0.47644376,77.225,77.195,0.45180783]
[1771902727381,0.47644376,77.225,77.197,0.45180783]
[1771902728058,0.47644376,77.219,77.186,0.45180783]
[1771902729679,12.95034836,77.218,77.188,0.45180783]
[1771902730083,0.47644376,77.217,77.188,0.45180783]
[1771902730476,0.47644376,77.209,77.18,0.28432314]
[1771902730891,0.47644376,77.209,77.179,0.45180783]
[1771902731075,0.47644376,77.209,77.178,12.95691798]
[1771902731276,0.47644376,77.199,77.163,0.14216157]
[1771902731589,0.47644376,77.199,77.164,0.28432314]
[1771902731769,0.47644376,77.197,77.163,12.95944995]
[1771902732087,0.47644376,77.197,77.164,0.45180783]
[1771902733813,0.47644376,77.197,77.166,0.45180783]
[1771902734169,12.95403906,77.196,77.166,0.45180783]
[1771902734492,0.47644376,77.195,77.166,0.45180783]
[1771902735688,0.47644376,77.195,77.168,0.45180783]
[1771902736493,0.47644376,77.193,77.168,0.45180783]
[1771902737492,0.47644376,77.193,77.168,0.45180783]
[1771902739678,0.45927141,77.2,77.17,0.45442156]
[1771902741315,0.45927141,77.207,77.17,0.45442156]
[1771902741685,0.45927141,77.207,77.172,0.47201323]
[1771902742283,0.48393489,77.214,77.178,0.47201323]
[1771902743797,0.48393489,77.214,77.18,0.47201323]
[1771902744489,0.48393489,77.222,77.18,0.47201323]
[1771902744679,0.48393489,77.231,77.184,0.47201323]
[1771902744882,0.48393489,77.231,77.198,0.47201323]
[1771902745986,0.48393489,77.231,77.2,0.47201323]
[1771902746581,0.48393489,77.241,77.208,0.47201323]
[1771902747791,12.94356733,77.259,77.215,0.28432314]
[1771902747993,0.48393489,77.258,77.22,0.47201323]
[1771902748187,0.48393489,77.258,77.228,0.28432314]
[1771902748501,0.48393489,77.256,77.221,12.94984524]
[1771902748701,0.48393489,77.249,77.217,12.95047902]
[1771902749399,12.94319095,77.261,77.219,0.47201323]
[1771902749601,12.94233807,77.266,77.227,0.47201323]
[1771902749791,12.94171882,77.27,77.229,0.47201323]
[1771902750505,11.51647397,77.27,77.231,0.47201323]
[1771902751488,0.48393489,77.269,77.231,0.47201323]
[1771902752787,0.48393489,77.269,77.236,0.28432314]
[1771902753009,0.48393489,77.269,77.239,0.47201323]
[1771902753385,0.48393489,77.267,77.239,0.47201323]
[1771902753991,0.48393489,77.267,77.244,0.28432314]
[1771902754199,13.42393786,77.28,77.245,0.47201323]
[1771902754586,13.42393786,77.28,77.232,45.31800289]
[1771902754587,0.48393489,77.289,77.254,0.28432314]
[1771902754787,0.48393489,77.286,77.251,0.14216157]
[1771902755192,0.48393489,77.286,77.255,0.28432314]
[1771902755489,11.51647397,77.28,77.246,0.47201323]
[1771902755808,0.48393489,77.269,77.214,0.47201323]
[1771902755999,0.48393489,77.279,77.216,0.47201323]
[1771902756331,0.48393489,77.279,77.193,213.74995141]
[1771902756332,0.48393489,77.279,77.236,0.47201323]
[1771902756505,0.48393489,77.279,77.244,0.28432314]
[1771902756701,0.48393489,77.279,77.244,0.75633637]
[1771902756913,0.48393489,77.277,77.245,12.94582173]
[1771902757210,0.48393489,77.277,77.246,0.47201323]
[1771902757708,0.48393489,77.259,77.233,0.47201323]
[1771902759716,0.48393489,77.257,77.227,12.9488255]
[1771902760297,0.48393489,77.257,77.227,13.42083873]
[1771902760597,0.48393489,77.257,77.228,0.47201323]
[1771902760827,12.94397846,77.256,77.229,13.42051703]
[1771902760988,12.94397846,77.256,77.23,0.47201323]
[1771902762514,0.48393489,77.255,77.225,12.94905007]
[1771902763293,0.48393489,77.255,77.226,0.47201323]
[1771902764599,12.94431356,77.254,77.226,0.47201323]
[1771902764799,0.48393489,77.253,77.226,0.47201323]
[1771902765307,12.94347584,77.259,77.228,0.47201323]
[1771902765507,13.42741073,77.259,77.228,0.47201323]
[1771902765708,0.48393489,77.258,77.228,0.47201323]
[1771902766512,0.48393489,77.256,77.23,0.47201323]
[1771902766709,0.48393489,77.256,77.198,103.5]
[1771902766710,0.48393489,77.249,77.215,0.28432314]
[1771902767016,0.48393489,77.249,77.214,0.47201323]
[1771902767017,0.48393489,77.249,77.208,0.47201323]
[1771902767312,0.48393489,77.229,77.192,0.47201323]
[1771902767603,0.48393489,77.219,77.192,0.47201323]
[1771902768406,5.63073263,77.21,77.183,0.45040889]
[1771902768615,12.95202569,77.208,77.183,0.45040889]
[1771902769109,0.46953884,77.207,77.176,0.45040889]
[1771902769316,0.46953884,77.199,77.158,0.45040889]
[1771902769517,0.46953884,77.199,77.164,0.45040889]
[1771902769807,11.53032822,77.2,77.164,0.45040889]
[1771902770010,12.95066444,77.217,77.179,0.28432314]
[1771902770200,0.46953884,77.216,77.186,0.45040889]
[1771902771103,0.46953884,77.214,77.187,12.9555495]
[1771902771711,0.46953884,77.214,77.188,0.45040889]
[1771902772500,0.46953884,77.209,77.181,0.45040889]
[1771902773120,0.46953884,77.217,77.186,0.45040889]
[1771902774106,13.41874382,77.225,77.196,0.45040889]
[1771902774311,0.46953884,77.225,77.196,0.45040889]
[1771902774690,0.46953884,77.225,77.182,45.34736077]
[1771902774691,0.46953884,77.235,77.204,0.45040889]
[1771902774914,0.46953884,77.235,77.206,0.45040889]
[1771902775311,0.46953884,77.233,77.207,12.95219345]
[1771902776004,0.46953884,77.229,77.198,0.45040889]
[1771902776704,0.46953884,77.229,77.2,0.45040889]
[1771902777010,11.53032822,77.23,77.202,0.45040889]
[1771902777214,11.53032822,77.23,77.199,45.33737482]
[1771902777215,0.46953884,77.237,77.206,0.45040889]
[1771902777392,0.46953884,77.237,77.208,0.45040889]
[1771902777714,11.53032822,77.24,77.208,0.45040889]
[1771902777911,12.94682737,77.239,77.208,0.45040889]
[1771902778110,0.46953884,77.238,77.208,0.45040889]
[1771902779601,13.41670146,77.237,77.21,0.45040889]
[1771902779915,11.99986706,77.23,77.204,0.28432314]
[1771902780223,0.46953884,77.236,77.205,0.45040889]
[1771902781327,0.46953884,77.219,77.187,0.45040889]
[1771902781524,0.46953884,77.209,77.18,0.45040889]
[1771902781710,0.46953884,77.209,77.181,13.2408798]
[1771902781908,11.53032822,77.19,77.162,0.45040889]
[1771902782115,11.53032822,77.17,77.152,0.45040889]
[1771902782420,0.46953884,77.169,77.15,0.1]
[1771902782803,0.46953884,77.189,77.151,0.45040889]
[1771902783002,0.46953884,77.189,77.152,0.45040889]
[1771902783198,11.53032822,77.18,77.154,0.45040889]
[1771902784226,51.78894375,77.237,77.153,0.28432314]
[1771902784227,11.53032822,77.2,77.158,0.45040889]
[1771902784421,0.46953884,77.209,77.176,0.45040889]
[1771902784603,0.46953884,77.209,77.184,0.45040889]
[1771902784809,0.46953884,77.215,77.185,0.45040889]
[1771902785101,0.46953884,77.209,77.161,0.45040889]
[1771902785302,0.46953884,77.209,77.174,0.28432314]
[1771902785514,0.46953884,77.209,77.175,0.45040889]
[1771902786626,13.42156453,77.208,77.177,0.45040889]
[1771902786829,0.46953884,77.207,77.177,0.45040889]
[1771902788836,0.46953884,77.199,77.167,0.45040889]
[1771902789127,11.53032822,77.19,77.168,12.95873937]
[1771902789323,11.53032822,77.2,77.169,0.45040889]
[1771902790828,12.95236121,77.206,77.171,0.45040889]
[1771902791535,0.46953884,77.205,77.173,0.45040889]
[1771902791711,11.53032822,77.21,77.173,0.45040889]
[1771902792834,0.46953884,77.208,77.181,0.28432314]
[1771902793040,0.46953884,77.208,77.181,0.73473203]
[1771902793242,0.46953884,77.208,77.182,0.45040889]
[1771902793636,0.46953884,77.199,77.174,13.40814076]
[1771902793860,0.46953884,77.199,77.174,0.45040889]
[1771902795045,12.95370346,77.198,77.174,0.45040889]
[1771902797345,11.53032822,77.19,77.156,0.45040889]
[1771902797535,0.46953884,77.197,77.156,0.45040889]
[1771902798342,11.53032822,77.18,77.157,0.48681426]
[1771902798642,0.48235316,77.179,77.157,0.48681426]
[1771902799148,0.48235316,77.177,77.15,0.58681426]
[1771902799328,0.48235316,77.169,77.15,0.1]
[1771902800628,13.44109253,77.168,77.15,0.1]
[1771902803443,0.46856384,77.167,77.15,0.1]
[1771902806855,12.95907524,77.166,77.15,0.1]
[1771902811635,0.46856384,77.169,77.15,0.1]
[1771902811851,0.46856384,77.167,77.15,0.1]
[1771902812562,0.46856384,77.159,77.133,0.46940894]
[1771902812862,0.46856384,77.149,77.126,0.46940894]
[1771902813058,0.46856384,77.139,77.118,0.46940894]
[1771902813246,0.46856384,77.149,77.118,0.46940894]
[1771902814060,0.46856384,77.147,77.12,0.46940894]
[1771902814261,11.53032822,77.14,77.12,0.46940894]
[1771902814561,0.46856384,77.141,77.12,0.46940894]
[1771902815151,11.53032822,77.14,77.12,0.46940894]
[1771902815578,11.53032822,77.13,77.112,0.46940894]
[1771902815751,0.46856384,77.133,77.112,0.46940894]
[1771902815943,12.83400863,77.139,77.09,0.1]
[1771902816144,12.83400863,77.139,77.092,0.28432314]
[1771902816344,0.46856384,77.138,77.095,0.46940894]
[1771902816558,0.46856384,77.157,77.099,0.46940894]
[1771902816770,11.53032822,77.15,77.105,0.46940894]
[1771902818144,0.46856384,77.156,77.105,0.46940894]
[1771902818368,0.46856384,77.154,77.107,0.46940894]
[1771902818545,0.46856384,77.154,77.113,0.46940894]
[1771902818846,0.46856384,77.154,77.115,0.46940894]
[1771902819362,12.9607899,77.156,77.115,0.46940894]
[1771902819662,12.9607899,77.156,77.106,45.39205767]
[1771902819663,0.46856384,77.139,77.107,0.46940894]
[1771902820655,0.46856384,77.137,77.109,0.46940894]
[1771902822363,11.53032822,77.15,77.109,0.46940894]
[1771902822664,0.46856384,77.151,77.116,45.38617147]
[1771902822842,0.46856384,77.151,77.117,0.46940894]
[1771902823043,11.53032822,77.15,77.117,0.46940894]
[1771902823261,11.5434754,77.15,77.117,0.46940894]
[1771902823460,0.46856384,77.149,77.117,0.46940894]
[1771902824962,0.46856384,77.149,77.119,0.46940894]
[1771902825365,11.5434754,77.16,77.119,0.46940894]
[1771902825545,12.96025091,77.159,77.119,0.46940894]
[1771902825746,13.42881475,77.159,77.119,0.46940894]
[1771902826046,0.46856384,77.158,77.119,0.46940894]
[1771902828169,12.96058685,77.157,77.12,12.96680497]
[1771902828468,0.48325689,77.156,77.121,0.49173442]
[1771902829262,0.48325689,77.162,77.125,0.49173442]
[1771902829468,0.48325689,77.169,77.125,0.49173442]
[1771902830368,0.48325689,77.169,77.12,45.38381741]
[1771902830369,0.48325689,77.159,77.127,0.49173442]
[1771902832177,0.48325689,77.149,77.111,12.96831839]
[1771902832487,0.48325689,77.147,77.112,0.49173442]
[1771902834481,0.48325689,77.145,77.114,0.49173442]
[1771902835859,0.48325689,77.145,77.116,0.49173442]
[1771902836373,0.48325689,77.143,77.116,0.49173442]
[1771902836576,5.17236057,77.14,77.116,0.49173442]
[1771902836874,5.17236057,77.14,77.09,0.1]
[1771902836875,0.48325689,77.139,77.106,0.49173442]
[1771902837268,0.48325689,77.129,77.106,0.49173442]
[1771902838277,0.48325689,77.129,77.107,12.96899114]
[1771902838480,0.48325689,77.129,77.107,13.46072556]
[1771902838679,0.48325689,77.129,77.108,0.49173442]
[1771902840078,0.48325689,77.135,77.108,0.49173442]
[1771902840479,0.48325689,77.133,77.108,0.49173442]
[1771902840772,0.48325689,77.133,77.109,12.96865476]
[1771902841981,0.48325689,77.133,77.109,13.46038918]
[1771902842281,12.96429574,77.135,77.09,0.1]
[1771902842282,0.48325689,77.119,77.092,0.49173442]
[1771902842487,0.48325689,77.109,77.09,0.1]
[1771902842976,0.48325689,77.099,77.067,0.49173442]
[1771902843182,45.38499442,77.118,77.067,0.49173442]
[1771902843183,5.17236057,77.09,77.067,0.49173442]
[1771902843479,0.48325689,77.094,77.067,0.49173442]
[1771902843981,0.48325689,77.089,77.067,0.49173442]
[1771902844158,0.48325689,77.089,77.061,12.97665499]
[1771902844364,0.48325689,77.089,77.061,13.46838941]
[1771902844565,0.48325689,77.079,77.055,0.49173442]
[1771902844767,0.48325689,77.069,77.041,0.49173442]
[1771902844994,5.17236057,77.06,77.041,0.49173442]
[1771902845290,0.48325689,77.059,77.028,0.49173442]
[1771902845468,0.48325689,77.059,77.01,0.1]
[1771902845469,0.48325689,77.059,77.03,0.49173442]
[1771902845998,0.48325689,77.059,77.023,0.49173442]
[1771902846196,0.48325689,77.058,77.023,0.49173442]
[1771902846560,0.48325689,77.058,77.025,0.49173442]
[1771902846877,0.48325689,77.056,77.025,0.49173442]
[1771902848480,11.57215974,77.08,77.029,0.49173442]
[1771902848668,11.57215974,77.06,77.031,0.49173442]
[1771902849073,0.48325689,77.06,77.031,0.49173442]
[1771902849274,0.48325689,77.067,77.031,0.49173442]
[1771902849572,11.57215974,77.06,77.031,0.49173442]
[1771902849770,11.57215974,77.07,77.031,0.49173442]
[1771902850271,0.48325689,77.069,77.031,0.49173442]
[1771902850675,12.05541663,77.06,77.033,0.49173442]
[1771902850976,0.48325689,77.067,77.033,0.49173442]
[1771902851170,0.48325689,77.059,77.012,0.49173442]
[1771902851372,11.57215974,77.03,77.011,0.49173442]
[1771902851565,0.48325689,77.02,77.01,0.1]
[1771902851884,11.57215974,77.03,77.01,0.1]
[1771902852061,3.69383402,77.067,77.01,0.1]
[1771902852062,11.57215974,77.04,77.011,0.49173442]
[1771902852268,11.57215974,77.04,76.972,51.96674108]
[1771902852269,11.57215974,77.02,76.97,0.49173442]
[1771902852463,11.57215974,77.01,76.97,0.49173442]
[1771902852777,11.57215974,77.03,76.979,0.14216157]
[1771902852979,11.57215974,77.03,76.985,0.14216157]
[1771902853168,45.4291759,77.043,76.986,0.49173442]
[1771902853483,11.57215974,77.02,76.986,0.49173442]
[1771902853682,11.57215974,77.01,76.972,0.49173442]
[1771902853985,11.57215974,76.99,76.96,0.49173442]
[1771902854187,11.57215974,77.0,76.96,0.49173442]
[1771902854378,11.57215974,76.98,76.96,0.49173442]
[1771902854582,11.57215974,76.97,76.941,0.49173442]
[1771902854781,15.53882522,77.03,76.941,0.49173442]
[1771902854782,0.23265231,77.006,76.942,0.49173442]
[1771902855089,0.23265231,76.999,76.942,0.49173442]
[1771902855284,11.57215974,76.98,76.942,0.49173442]
[1771902855486,11.57215974,77.0,76.94,0.59173442]
[1771902855786,11.57215974,76.97,76.941,0.49173442]
[1771902856167,0.23265231,76.989,76.941,0.49173442]
[1771902856573,12.99224363,76.969,76.941,0.49173442]
[1771902856885,11.57215974,76.97,76.942,12.99680278]
[1771902857087,12.99147773,76.974,76.943,0.49173442]
[1771902857274,0.23265231,76.979,76.943,0.49173442]
[1771902857478,12.99072462,76.978,76.943,0.49173442]
[1771902857876,11.57215974,76.98,76.943,0.49173442]
[1771902858092,12.99055586,76.979,76.943,0.49173442]
[1771902858478,12.99055586,76.979,76.94,0.1]
[1771902858479,0.23265231,76.978,76.94,0.1]
[1771902858677,0.23265231,76.959,76.918,0.46887299]
[1771902858891,11.57215974,76.95,76.921,0.46887299]
[1771902859072,0.48760125,76.929,76.884,16.99716251]
[1771902859271,11.57215974,76.91,76.884,1e-08]
[1771902859474,11.57215974,76.91,76.884,13.00656716]
[1771902859676,0.48760125,76.914,76.884,13.00653973]
[1771902859901,0.48760125,76.946,76.884,45.52305812]
[1771902860204,0.48760125,76.919,76.884,13.00653973]
[1771902860392,0.48760125,76.928,76.884,13.00653973]
[1771902860595,0.48760125,76.928,76.884,1e-08]
[1771902860901,0.48760125,76.939,76.884,1e-08]
[1771902861196,0.48760125,76.929,76.884,1e-08]
[1771902861676,11.57215974,76.93,76.885,0.465244]
[1771902861876,0.48658947,76.937,76.885,0.465244]
[1771902862084,12.05874921,76.93,76.885,0.465244]
[1771902862297,0.48658947,76.929,76.885,0.465244]
[1771902862484,0.48658947,76.939,76.892,0.28432314]
[1771902862691,0.48658947,76.939,76.891,0.465244]
[1771902862692,11.57215974,76.95,76.901,0.465244]
[1771902862878,51.94386501,77.007,76.896,45.51602163]
[1771902862879,12.05874921,76.96,76.908,0.28432314]
[1771902863086,12.05874921,76.97,76.922,0.28432314]
[1771902863283,0.48658947,76.959,76.916,0.465244]
[1771902863802,11.57215974,76.95,76.916,0.465244]
[1771902864204,0.48658947,76.959,76.916,0.465244]
[1771902864698,0.48658947,76.949,76.916,0.465244]
[1771902865501,0.48658947,76.947,76.916,0.465244]
[1771902865697,0.48658947,76.958,76.916,0.465244]
[1771902865898,0.48658947,76.958,76.918,0.465244]
[1771902866582,11.57215974,76.96,76.918,0.465244]
[1771902866986,11.57215974,76.97,76.918,0.465244]
[1771902867188,11.57215974,76.97,76.917,45.50359478]
[1771902867189,11.57215974,76.97,76.926,0.465244]
[1771902867387,12.05874921,76.97,76.926,0.465244]
[1771902867597,12.9907678,76.978,76.928,0.465244]
[1771902867797,12.9907678,76.978,76.927,45.49767961]
[1771902867798,12.05874921,76.98,76.936,0.465244]
[1771902867980,0.48658947,76.999,76.942,0.465244]
[1771902868184,0.48658947,76.999,76.95,0.465244]
[1771902868404,0.48658947,76.999,76.956,0.465244]
[1771902868898,11.57215974,77.0,76.946,0.28432314]
[1771902869101,0.48658947,77.009,76.955,0.465244]
[1771902869607,0.48658947,77.008,76.957,0.465244]
[1771902869809,0.48658947,77.008,76.965,0.465244]
[1771902870386,0.48658947,76.999,76.958,0.465244]
[1771902870699,0.48658947,76.989,76.956,12.99443838]
[1771902871203,0.48658947,76.989,76.957,0.465244]
[1771902871414,0.48658947,76.999,76.957,0.465244]
[1771902871899,0.48658947,76.999,76.959,0.465244]
[1771902872289,11.57215974,77.01,76.958,45.47935236]
[1771902872290,0.48658947,77.019,76.972,0.28432314]
[1771902872492,0.48658947,77.018,76.975,0.465244]
[1771902872804,13.46884636,77.029,76.975,0.465244]
[1771902872985,0.48658947,77.019,76.975,0.465244]
[1771902873193,0.48658947,77.009,76.975,0.465244]
[1771902873684,0.48658947,77.009,76.976,12.99106214]
[1771902873887,0.48658947,77.009,76.977,0.465244]
[1771902874086,12.98380918,77.019,76.977,0.465244]
[1771902874284,0.48658947,77.009,76.975,12.99118111]
[1771902874589,0.48658947,76.999,76.968,12.99225626]
[1771902874904,11.57215974,76.99,76.962,12.99331606]
[1771902875211,0.48658947,76.999,76.963,0.465244]
[1771902875908,0.48658947,76.997,76.964,12.99308767]